bitfinex-derivatives/quotes_ETHF0:USTF0_20241020
["timestamp","ask_amount","ask_price","bid_price","bid_amount"]
[1729434180362,3.2078,2705.0,2704.4,0.36981]
[1729434180363,3.2078,2705.0,2704.4,0.36982]
[1729434180563,3.2078,2705.1,2704.3,3.2086]
[1729434180865,4.8724,2705.4,2704.3,0.0008]
[1729434180866,0.36982,2704.4,2704.3,0.0008]
[1729434181254,7.27522,2704.4,2704.3,0.0008]
[1729434182054,6.9054,2704.4,2703.5,3.2078]
[1729434182258,0.36991,2703.8,2703.5,3.2078]
[1729434182461,3.2078,2704.3,2703.5,3.2078]
[1729434182660,0.36991,2703.8,2703.5,3.57773]
[1729434182859,0.36992,2703.7,2703.5,3.57773]
[1729434183569,0.36992,2703.7,2703.5,0.36993]
[1729434183956,4.13242,2704.3,2703.9,0.36987]
[1729434183957,0.36985,2704.2,2703.9,0.36987]
[1729434184167,4.8596,2704.6,2704.1,3.2078]
[1729434184565,0.36984,2704.3,2704.1,3.57765]
[1729434184867,4.8596,2704.6,2704.1,3.2078]
[1729434185064,0.36985,2704.2,2704.1,3.2078]
[1729434185669,4.8596,2704.6,2703.5,1.89183]
[1729434185670,4.8596,2704.6,2703.8,3.2078]
[1729434186166,0.36985,2704.2,2704.1,0.36986]
[1729434186367,4.8596,2704.6,2704.1,0.36986]
[1729434186568,4.8596,2704.6,2703.8,3.2078]
[1729434186763,4.8596,2704.6,2703.3,3.381]
[1729434186764,4.8596,2704.6,2704.0,3.2078]
[1729434186956,0.36984,2704.3,2704.1,0.36985]
[1729434187655,0.36985,2704.2,2704.0,0.36987]
[1729434187860,4.8596,2704.6,2704.1,0.36985]
[1729434187861,0.36984,2704.3,2704.1,0.36985]
[1729434188055,4.8596,2704.6,2703.8,3.2078]
[1729434188456,4.8596,2704.6,2703.8,3.57769]
[1729434188457,1.29432,2704.5,2703.8,3.57769]
[1729434188667,0.92455,2704.4,2703.8,3.2078]
[1729434188871,0.36989,2703.9,2703.8,3.2078]
[1729434190367,0.36993,2703.6,2703.4,3.2078]
[1729434190670,0.36993,2703.6,2703.4,3.57775]
[1729434191464,0.36994,2703.6,2703.4,3.57775]
[1729434191662,2.3704,2703.9,2703.1,3.90598533]
[1729434191862,2.3704,2703.9,2703.3,0.36996]
[1729434192061,0.36995,2703.5,2703.3,0.36997]
[1729434192566,3.2078,2703.8,2703.1,3.90598533]
[1729434192770,0.36998,2703.2,2703.1,3.90598533]
[1729434193872,0.36998,2703.2,2702.7,4.9597]
[1729434193873,3.6992,2703.2,2702.7,3.2078]
[1729434194071,3.2078,2703.7,2702.7,3.2078]
[1729434194072,0.37004,2702.8,2702.7,3.2078]
[1729434194271,2.3091,2703.1,2702.4,3.4557]
[1729434194475,0.37004,2702.8,2702.6,3.57786]
[1729434194777,0.37005,2702.7,2702.5,0.37007]
[1729434194968,2.3091,2703.1,2702.5,0.37007]
[1729434195174,2.3091,2703.1,2702.6,3.2078]
[1729434195369,0.36997,2703.3,2703.1,0.36999]
[1729434195573,0.37,2703.1,2703.0,3.5778]
[1729434195880,0.36999,2703.2,2703.0,3.5778]
[1729434196474,4.13259,2703.7,2703.0,3.2078]
[1729434196676,7.9325,2704.0,2703.0,3.2078]
[1729434196865,0.36989,2703.9,2703.4,3.2078]
[1729434197069,0.36989,2703.9,2703.1,2.4371]
[1729434197070,0.36989,2703.9,2703.7,3.57771]
[1729434197276,0.3699,2703.8,2703.7,3.2078]
[1729434198676,2.3091,2704.0,2703.7,3.2078]
[1729434198879,2.3845,2704.2,2703.8,0.36989]
[1729434199181,2.3845,2704.2,2703.7,3.2078]
[1729434199182,0.36989,2703.9,2703.7,3.57771]
[1729434199378,0.36989,2703.9,2703.7,3.2086]
[1729434199577,0.36989,2703.9,2703.8,0.3699]
[1729434199975,0.36989,2703.9,2703.7,3.57851]
[1729434200381,0.3699,2703.8,2703.7,3.57851]
[1729434201280,0.3699,2703.8,2703.7,3.2086]
[1729434201467,0.92455,2704.4,2703.7,3.2086]
[1729434201781,2.5385,2704.5,2704.1,0.36985]
[1729434201782,0.36984,2704.3,2704.1,0.36985]
[1729434201973,0.36984,2704.3,2704.0,3.2078]
[1729434202180,0.36984,2704.3,2704.1,0.36985]
[1729434202386,2.5385,2704.5,2704.0,3.2078]
[1729434202877,0.36974,2705.0,2704.8,0.36976]
[1729434203076,0.36974,2705.0,2704.3,3.2078]
[1729434203077,4.9593,2705.5,2704.9,3.2078]
[1729434203272,3.2078,2705.6,2704.9,3.2078]
[1729434203273,0.36966,2705.6,2705.4,0.36968]
[1729434203474,0.92404,2705.9,2705.2,3.2078]
[1729434203674,0.92404,2705.9,2705.1,0.36972]
[1729434203675,0.3697,2705.3,2705.1,0.36972]
[1729434203881,0.3697,2705.3,2705.2,3.2078]
[1729434204073,0.36969,2705.4,2705.2,3.2078]
[1729434204575,0.3697,2705.3,2705.2,3.2078]
[1729434204882,0.36969,2705.4,2705.2,3.2078]
[1729434205275,0.92405,2705.9,2705.2,3.2078]
[1729434205479,0.3697,2705.3,2705.2,3.2078]
[1729434205774,0.3697,2705.3,2705.1,0.36972]
[1729434205775,0.92405,2705.9,2705.0,2.4542]
[1729434205967,3.2078,2705.8,2705.0,2.4542]
[1729434206166,0.36974,2705.0,2704.7,1.33477]
[1729434206587,4.13191,2705.7,2704.7,0.965]
[1729434206882,0.36972,2705.1,2704.9,3.2078]
[1729434207072,3.2078,2705.7,2704.9,3.2078]
[1729434207274,0.92414,2705.6,2704.8,3.57756]
[1729434207673,0.36972,2705.2,2704.9,0.36974]
[1729434207872,0.36965,2705.6,2704.9,0.36974]
[1729434208176,3.2078,2705.4,2704.6,2.4917]
[1729434208378,0.965,2705.9,2704.6,2.4917]
[1729434208379,4.9953,2705.3,2704.6,2.4917]
[1729434208590,0.36978,2704.7,2704.6,2.4917]
[1729434209081,4.9953,2705.3,2704.5,3.2078]
[1729434209385,0.36977,2704.8,2704.5,3.5776]
[1729434209772,7.3966,2705.3,2704.5,3.5776]
[1729434209974,7.3966,2705.3,2704.5,3.2078]
[1729434210170,0.36979,2704.6,2704.5,3.2078]
[1729434210384,0.36979,2704.6,2703.9,7.185]
[1729434210385,3.2078,2704.6,2703.9,5.7234]
[1729434210580,3.2078,2704.6,2703.6,3.57772]
[1729434210581,0.3699,2703.8,2703.6,3.57772]
[1729434210880,0.3699,2703.8,2703.6,3.2078]
[1729434211779,4.0683,2703.8,2703.2,3.2078]
[1729434212083,3.6984,2703.8,2702.7,2.5091]
[1729434212383,3.2078,2703.9,2702.8,0.37002]
[1729434212384,0.37,2703.1,2702.8,0.37002]
[1729434212586,0.36999,2703.2,2702.9,3.57782]
[1729434212776,0.37,2703.1,2702.9,3.57782]
[1729434212970,0.36998,2703.3,2703.0,0.37]
[1729434213171,2.5185,2703.7,2702.9,3.2078]
[1729434213383,0.36997,2703.4,2703.1,0.36999]
[1729434213879,0.36992,2703.7,2703.2,3.2078]
[1729434214073,0.36987,2704.1,2703.8,0.36989]
[1729434214279,0.36988,2704.0,2703.8,3.2078]
[1729434215578,0.36988,2704.0,2703.8,3.5777]
[1729434215786,0.36988,2704.0,2703.8,3.2078]
[1729434216583,0.36989,2703.9,2703.8,3.2078]
[1729434217178,0.92462,2704.3,2703.3,3.2078]
[1729434217383,0.36996,2703.4,2703.3,3.2078]
[1729434218883,0.36999,2703.2,2703.0,0.37001]
[1729434219279,0.37,2703.1,2702.9,3.57782]
[1729434219986,0.37,2703.1,2702.9,3.2078]
[1729434220180,0.92486,2703.5,2702.9,3.2078]
[1729434220483,0.37001,2703.0,2702.9,3.2078]
[1729434220692,0.37,2703.1,2702.9,3.2078]
[1729434220880,4.13266,2703.5,2702.9,3.2078]
[1729434221083,0.37001,2703.0,2702.9,3.2078]
[1729434225292,4.07001,2703.0,2702.9,3.2078]
[1729434226693,0.37001,2703.0,2702.9,3.2078]
[1729434228085,0.37008,2702.5,2702.4,3.2078]
[1729434229598,0.36928,2702.5,2702.4,3.2078]
[1729434231503,4.9527,2702.9,2702.0,0.70637551]
[1729434231699,0.37013,2702.1,2701.9,5.90746]
[1729434231904,4.9527,2702.9,2701.9,5.5373]
[1729434232113,0.37014,2702.1,2701.9,5.90745]
[1729434232300,2.347,2702.5,2701.9,5.5373]
[1729434232809,0.37015,2702.0,2701.9,3.2078]
[1729434233012,0.37015,2702.0,2701.9,3.90922949]
[1729434233204,0.37015,2702.0,2701.9,3.2078]
[1729434233405,2.3812,2702.3,2701.6,0.37019]
[1729434233608,0.37018,2701.8,2701.6,0.3702]
[1729434233803,0.37018,2701.8,2701.7,0.37019]
[1729434234012,0.37017,2701.9,2701.7,0.37019]
[1729434234512,0.37017,2701.8,2701.7,0.37019]
[1729434235405,0.37019,2701.7,2701.6,0.37019]
[1729434235710,2.3812,2702.3,2701.5,3.2078]
[1729434235918,0.37019,2701.7,2701.6,0.37019]
[1729434236310,0.37019,2701.7,2701.5,3.57801]
[1729434236509,0.3702,2701.7,2701.5,3.57801]
[1729434236814,0.92534,2702.1,2701.5,3.57801]
[1729434236815,0.3702,2701.6,2701.5,3.57801]
[1729434237012,0.37015,2702.0,2701.5,3.57801]
[1729434237207,0.92534,2702.1,2701.5,3.57801]
[1729434237707,0.92534,2702.1,2701.5,3.2078]
[1729434237909,0.37019,2701.7,2701.6,0.3702]
[1729434238511,3.2078,2702.4,2701.6,3.7016]
[1729434238715,40.8,2703.3,2701.4,5.50925325]
[1729434238716,5.6962,2702.7,2701.9,3.2078]
[1729434238919,5.6962,2702.7,2701.7,0.92548]
[1729434238920,0.3701,2702.4,2702.3,3.2078]
[1729434239315,0.37008,2702.5,2702.4,0.37009]
[1729434239508,2.4884,2702.7,2702.3,3.2078]
[1729434239814,0.37007,2702.6,2702.5,0.37008]
[1729434240011,2.4884,2702.7,2702.4,0.37009]
[1729434240012,0.37008,2702.5,2702.4,0.37009]
[1729434240613,0.37008,2702.5,2702.3,3.5779]
[1729434241017,0.37008,2702.5,2702.3,3.2078]
[1729434241316,0.37008,2702.5,2702.4,0.37009]
[1729434241516,0.37007,2702.6,2702.3,3.2078]
[1729434241817,2.329,2703.1,2702.3,3.2078]
[1729434242016,0.37002,2702.9,2702.8,3.2078]
[1729434242322,0.37004,2702.8,2702.7,0.37005]
[1729434242512,2.329,2703.1,2702.5,3.2078]
[1729434242712,2.3141,2703.4,2702.9,0.37002]
[1729434242913,0.37001,2703.0,2702.9,0.37002]
[1729434243223,0.36998,2703.3,2703.1,0.36999]
[1729434243414,2.3141,2703.4,2703.0,0.37]
[1729434243415,0.37,2703.1,2703.0,0.37]
[1729434244015,0.37001,2703.0,2702.9,2.74762]
[1729434244216,2.3141,2703.4,2702.8,3.2078]
[1729434244422,0.36998,2703.2,2702.7,0.37004]
[1729434244625,0.37004,2702.8,2702.7,0.37084]
[1729434244822,0.37004,2702.8,2702.7,0.0008]
[1729434245724,0.37003,2702.9,2702.8,0.37003]
[1729434245924,0.37003,2702.9,2702.7,0.0008]
[1729434245925,0.37004,2702.8,2702.7,0.37084]
[1729434246121,0.37004,2702.8,2702.7,0.0008]
[1729434249524,4.07004,2702.8,2702.7,0.0008]
[1729434249930,4.07004,2702.8,2702.5,3.2078]
[1729434249931,0.37006,2702.6,2702.5,3.2061]
[1729434250127,0.92509,2702.9,2702.0,0.37014]
[1729434250128,2.4168,2702.7,2702.0,0.37014]
[1729434250330,0.37015,2702.0,2701.9,11.48844132]
[1729434250523,0.37014,2702.1,2701.9,11.48844132]
[1729434250826,3.34194,2702.7,2701.9,10.4379]
[1729434251029,3.34194,2702.7,2702.0,0.37014]
[1729434251030,0.37011,2702.3,2702.0,0.37014]
[1729434251427,0.37011,2702.3,2702.1,0.37013]
[1729434251729,0.37012,2702.2,2701.9,5.5926]
[1729434252032,0.37011,2702.3,2702.1,0.37013]
[1729434252421,0.37011,2702.3,2701.9,5.5926]
[1729434252422,0.3701,2702.4,2702.2,0.37011]
[1729434253419,43.2168,2702.7,2701.9,5.5926]
[1729434253628,0.92517,2702.6,2701.9,5.5926]
[1729434253834,0.37008,2702.5,2702.0,0.37015]
[1729434254023,0.92517,2702.6,2702.0,0.37015]
[1729434254024,0.37013,2702.1,2702.0,0.37015]
[1729434254427,0.92517,2702.6,2702.0,0.37014]
[1729434254635,0.37008,2702.5,2702.1,0.37013]
[1729434254825,0.37006,2702.6,2702.3,0.3701]
[1729434255032,0.37009,2702.5,2702.3,0.3701]
[1729434255232,2.4168,2702.7,2701.9,3.2078]
[1729434255426,0.37008,2702.5,2702.4,0.37009]
[1729434255631,2.4168,2702.7,2702.2,3.2078]
[1729434255926,0.37007,2702.6,2702.5,0.37007]
[1729434257433,2.4168,2702.7,2702.6,0.37006]
[1729434257834,2.4934,2702.8,2702.7,0.37005]
[1729434258039,2.3484,2703.3,2702.5,3.2078]
[1729434258238,0.36999,2703.2,2702.6,0.92515]
[1729434258440,2.3398,2703.3,2703.2,0.36998]
[1729434259241,2.70978,2703.3,2703.1,0.36999]
[1729434259436,2.3398,2703.3,2703.1,0.36999]
[1729434259737,2.3398,2703.3,2702.8,5.6595]
[1729434259738,0.36998,2703.2,2702.8,5.6595]
[1729434259939,2.3398,2703.3,2703.0,0.37]
[1729434260144,0.37,2703.1,2703.0,0.37]
[1729434260533,2.3398,2703.3,2702.9,0.37002]
[1729434260534,0.37001,2703.0,2702.9,0.37002]
[1729434260734,2.3398,2703.3,2702.9,0.37002]
[1729434261142,2.3398,2703.3,2703.0,0.37]
[1729434261340,2.3398,2703.3,2703.2,0.36998]
[1729434261640,3.2078,2703.7,2703.6,0.36993]
[1729434262543,3.57771,2703.7,2703.6,0.36993]
[1729434263045,3.2078,2703.7,2703.6,0.36993]
[1729434263543,2.3484,2703.8,2703.7,0.36991]
[1729434267953,0.36988,2704.0,2703.8,0.36989]
[1729434268339,2.79957,2704.1,2703.9,0.36988]
[1729434269153,0.36987,2704.0,2703.9,0.36988]
[1729434269454,0.36989,2703.9,2703.5,3.2078]
[1729434269654,0.36989,2703.9,2703.7,0.3699]
[1729434270149,0.36992,2703.7,2703.5,0.36993]
[1729434270352,5.6375,2704.1,2703.4,0.36995]
[1729434270353,0.36993,2703.6,2703.4,0.36995]
[1729434270854,5.6375,2704.1,2703.5,0.36993]
[1729434270855,0.36992,2703.7,2703.5,0.36993]
[1729434271051,0.36993,2703.6,2703.4,0.36995]
[1729434271245,0.36993,2703.6,2703.2,3.2078]
[1729434271442,0.36993,2703.6,2703.5,0.36994]
[1729434271650,0.36992,2703.7,2703.5,0.36994]
[1729434271946,0.36992,2703.7,2703.5,0.36993]
[1729434272654,0.36992,2703.7,2703.2,3.2078]
[1729434272858,0.36992,2703.7,2703.5,0.36994]
[1729434273552,0.36993,2703.6,2703.5,0.36994]
[1729434274447,0.36992,2703.7,2703.5,0.36994]
[1729434274849,0.36992,2703.7,2703.5,0.37074]
[1729434275354,0.36993,2703.6,2703.5,0.0008]
[1729434275548,2.83603,2703.6,2703.5,0.0008]
[1729434275753,6.53523,2703.6,2703.5,0.0008]
[1729434276255,6.53523,2703.6,2703.0,0.37001]
[1729434276455,3.2078,2703.5,2702.8,3.2078]
[1729434276650,3.2078,2703.5,2702.9,0.37001]
[1729434276651,0.37,2703.1,2702.9,0.37001]
[1729434277052,0.9249,2703.4,2702.8,3.2078]
[1729434277358,0.37002,2702.9,2702.8,3.2078]
[1729434280049,0.37002,2702.9,2702.6,2.5327]
[1729434280250,2.3162,2703.0,2702.5,0.37007]
[1729434280561,0.37007,2702.6,2702.4,0.37008]
[1729434281454,43.1162,2703.0,2702.3,3.2078]
[1729434281655,0.37007,2702.6,2702.4,0.37008]
[1729434281857,0.37008,2702.5,2702.4,0.37009]
[1729434282556,43.1162,2703.0,2702.3,3.2078]
[1729434282751,0.37007,2702.6,2702.3,3.2078]
[1729434282957,0.37007,2702.6,2702.5,0.37008]
[1729434283153,0.37007,2702.6,2702.3,3.2078]
[1729434283352,0.37007,2702.6,2702.1,2.5408]
[1729434283758,0.37007,2702.6,2702.4,0.37008]
[1729434283959,0.37007,2702.6,2702.1,2.5408]
[1729434284259,0.37007,2702.6,2702.5,0.37008]
[1729434284560,43.1162,2703.0,2702.6,0.37006]
[1729434284561,0.37005,2702.7,2702.6,0.37006]
[1729434284863,0.37005,2702.7,2702.5,0.37007]
[1729434285060,43.1162,2703.0,2702.3,3.2078]
[1729434285260,2.68622,2703.0,2702.8,0.37003]
[1729434285454,2.68622,2703.0,2702.3,4.13305]
[1729434285455,2.3162,2703.0,2702.3,3.2078]
[1729434285763,2.5165,2703.1,2703.0,0.37001]
[1729434286261,2.4696,2703.5,2703.0,3.2078]
[1729434286467,2.4696,2703.5,2703.3,0.36997]
[1729434286667,2.83955,2703.5,2703.3,0.36997]
[1729434287256,0.36996,2703.4,2703.0,3.2078]
[1729434287462,0.36996,2703.4,2703.2,0.36997]
[1729434287659,2.4696,2703.5,2702.8,4.647]
[1729434287866,2.83955,2703.5,2703.3,0.36996]
[1729434288369,0.36997,2703.3,2703.2,0.36998]
[1729434288762,2.4696,2703.5,2703.2,0.36998]
[1729434289064,0.36996,2703.4,2703.2,0.36998]
[1729434289460,2.4696,2703.5,2703.4,0.36996]
[1729434289762,0.36996,2703.4,2703.0,3.2078]
[1729434289969,2.4696,2703.5,2703.0,3.2078]
[1729434290159,2.4696,2703.5,2703.1,0.36999]
[1729434290160,0.36997,2703.3,2703.1,0.36999]
[1729434290360,2.4696,2703.5,2703.0,3.2078]
[1729434290554,0.37002,2703.0,2702.8,2.70973]
[1729434291159,3.2078,2703.3,2702.9,0.37002]
[1729434291468,3.2078,2703.3,2702.8,2.3397]
[1729434291469,0.37001,2703.0,2702.8,2.70973]
[1729434291663,3.2078,2703.3,2702.8,2.3397]
[1729434291962,0.37001,2703.0,2702.9,0.37002]
[1729434292262,3.2078,2703.3,2702.9,0.37002]
[1729434292263,0.37001,2703.1,2702.9,0.37002]
[1729434292470,0.37001,2703.0,2702.9,0.37002]
[1729434292654,3.2078,2703.3,2702.9,0.37002]
[1729434292859,3.39449,2703.5,2702.9,0.37002]
[1729434293164,3.39449,2703.5,2702.8,2.3397]
[1729434293355,0.37002,2703.0,2702.8,2.70973]
[1729434293555,0.37002,2703.0,2702.8,0.37003]
[1729434294265,0.9249,2703.4,2702.6,3.2078]
[1729434294467,0.37005,2702.7,2702.6,3.2078]
[1729434297375,0.37004,2702.8,2702.6,3.57785]
[1729434297671,0.37005,2702.7,2702.6,3.2078]
[1729434298472,2.88763,2702.9,2702.6,3.2078]
[1729434298675,2.5176,2702.9,2702.8,0.37004]
[1729434299166,2.88762,2702.9,2702.8,0.37004]
[1729434299565,2.88762,2702.9,2702.7,0.37004]
[1729434300072,2.88762,2702.9,2702.6,3.2078]
[1729434300073,2.88762,2702.9,2702.8,0.37004]
[1729434300380,2.88762,2702.9,2702.7,0.37004]
[1729434300568,2.88763,2702.9,2702.7,0.37005]
[1729434300764,2.88763,2702.9,2702.8,0.37004]
[1729434301176,0.37004,2702.8,2702.7,0.37005]
[1729434301372,0.37004,2702.8,2702.6,3.57786]
[1729434301576,2.5176,2702.9,2702.6,3.2078]
[1729434301777,2.5176,2702.9,2702.4,0.37009]
[1729434301778,0.37006,2702.6,2702.4,0.37009]
[1729434302578,2.5176,2702.9,2702.4,0.37009]
[1729434302769,0.37007,2702.6,2702.4,0.37009]
[1729434302968,2.5176,2702.9,2702.4,0.37009]
[1729434302969,0.37008,2702.5,2702.4,0.37009]
[1729434303277,0.37005,2702.7,2702.5,0.37007]
[1729434303575,2.5176,2702.9,2702.7,0.37005]
[1729434303776,2.88763,2702.9,2702.8,0.37004]
[1729434304075,0.36998,2703.2,2702.7,0.37005]
[1729434304286,3.38850823,2703.7,2702.9,3.2078]
[1729434304579,6.59630823,2704.1,2703.6,3.2078]
[1729434304776,3.57767,2704.1,2703.8,0.36989]
[1729434304969,3.2078,2704.1,2703.2,3.2078]
[1729434305165,1.29456,2704.0,2703.2,0.36998]
[1729434305368,0.36994,2703.5,2703.2,0.36998]
[1729434305571,5.6188,2704.1,2703.1,4.6872]
[1729434305772,0.36994,2703.5,2703.2,0.36997]
[1729434305965,5.6188,2704.1,2703.1,4.6872]
[1729434306176,0.36991,2703.8,2703.3,0.36997]
[1729434306370,0.36989,2703.9,2703.6,0.36992]
[1729434306571,3.2078,2704.1,2703.2,3.2078]
[1729434306880,0.36988,2704.0,2703.5,3.2078]
[1729434307075,0.36988,2704.0,2703.8,0.3699]
[1729434307273,3.2078,2704.1,2703.8,0.3699]
[1729434307567,3.57767,2704.1,2703.8,0.3699]
[1729434307771,3.6984,2704.0,2703.5,3.2078]
[1729434307969,3.2078,2704.1,2703.1,4.6872]
[1729434308170,0.36992,2703.7,2703.5,0.36994]
[1729434308580,0.36991,2703.8,2703.5,0.36994]
[1729434308881,3.2078,2704.1,2703.2,3.2078]
[1729434309070,0.36993,2703.6,2703.4,0.36995]
[1729434310072,0.36992,2703.7,2703.4,0.36994]
[1729434310277,0.36993,2703.6,2703.4,0.36994]
[1729434310481,3.2078,2704.1,2703.2,3.2078]
[1729434310983,3.2078,2704.1,2703.9,0.36988]
[1729434310984,3.57766,2704.1,2703.9,0.36988]
[1729434311184,3.57767,2704.1,2703.5,3.2078]
[1729434311379,3.57767,2704.1,2703.8,0.3699]
[1729434311380,0.36987,2704.0,2703.8,0.3699]
[1729434311686,3.2078,2704.1,2703.6,2.4913]
[1729434311887,0.36986,2704.2,2703.9,0.36988]
[1729434312078,4.793,2704.3,2703.8,0.3699]
[1729434312079,0.36988,2704.0,2703.8,0.3699]
[1729434312277,4.793,2704.3,2703.6,2.4913]
[1729434312476,0.36988,2704.0,2703.7,0.3699]
[1729434312678,40.8,2704.2,2703.7,0.3699]
[1729434312875,0.36989,2703.9,2703.7,0.3699]
[1729434313179,40.8,2704.2,2703.5,3.2078]
[1729434313487,41.72463,2704.2,2703.2,5.5549]
[1729434313686,0.36991,2703.8,2703.6,0.36993]
[1729434314179,41.72463,2704.2,2703.5,0.36993]
[1729434314380,0.36993,2703.7,2703.2,5.5549]
[1729434314688,0.36994,2703.6,2703.3,0.36996]
[1729434315284,0.36994,2703.6,2703.2,5.5549]
[1729434315285,0.36994,2703.6,2703.4,0.36995]
[1729434315477,0.92469,2704.0,2703.2,5.5549]
[1729434315676,45.14950823,2704.2,2703.2,5.5549]
[1729434315984,0.36989,2703.9,2703.7,0.36991]
[1729434316388,41.761,2704.2,2703.2,5.5549]
[1729434316687,40.8,2704.2,2703.5,3.2078]
[1729434316877,40.8,2704.2,2703.7,0.36991]
[1729434316878,0.36989,2703.9,2703.7,0.36991]
[1729434317292,0.36987,2704.1,2703.9,0.36989]
[1729434317686,40.8,2704.2,2703.5,3.2078]
[1729434318380,40.8,2704.2,2703.5,4.13264]
[1729434318687,40.8,2704.2,2704.0,0.36987]
[1729434318688,41.16985,2704.2,2704.0,0.36987]
[1729434319198,41.16985,2704.2,2703.5,4.13264]
[1729434319199,44.4984,2704.2,2703.5,3.2078]
[1729434319388,0.3699,2703.9,2703.7,0.36991]
[1729434319583,0.3699,2703.9,2703.5,3.2078]
[1729434319781,0.3699,2703.9,2703.7,0.36991]
[1729434319986,0.3699,2703.9,2703.7,0.3699]
[1729434319987,0.36989,2703.9,2703.7,0.3699]
[1729434320489,40.8,2704.2,2703.5,3.2078]
[1729434320690,0.3699,2703.8,2703.6,0.36992]
[1729434321195,40.8,2704.2,2703.6,0.36992]
[1729434321400,0.36991,2703.8,2703.6,0.36992]
[1729434321693,0.36991,2703.8,2703.2,6.47986]
[1729434321694,0.36992,2703.7,2703.5,0.36994]
[1729434321994,41.72464,2704.2,2703.2,5.5549]
[1729434322194,0.92466,2704.1,2703.4,0.36994]
[1729434322386,0.36993,2703.6,2703.4,0.36994]
[1729434322791,40.8,2704.2,2703.5,3.2078]
[1729434323089,40.8,2704.2,2703.7,0.3699]
[1729434323090,0.36989,2703.9,2703.7,0.3699]
[1729434323284,0.36989,2703.9,2703.8,0.3699]
[1729434323490,40.8,2704.2,2703.5,3.2078]
[1729434323694,0.36989,2704.0,2703.7,0.3699]
[1729434323893,40.8,2704.2,2703.5,3.2078]
[1729434324198,0.3699,2703.8,2703.6,0.36992]
[1729434325400,4.9059,2703.7,2703.2,3.2078]
[1729434325592,0.36996,2703.4,2703.2,3.57778]
[1729434326187,4.9059,2703.7,2703.4,0.36995]
[1729434326188,0.36993,2703.6,2703.4,0.36995]
[1729434326887,5.27582,2703.7,2703.5,0.36994]
[1729434327093,4.9059,2703.7,2703.2,3.2078]
[1729434327298,5.27582,2703.7,2703.5,0.36994]
[1729434327687,4.9059,2703.7,2703.3,2.3533]
[1729434327997,5.27583,2703.7,2703.5,0.36994]
[1729434328189,4.9059,2703.7,2703.3,2.3533]
[1729434328592,2.5257,2703.7,2703.6,0.36993]
[1729434329699,3.2078,2703.9,2703.8,0.3699]
[1729434330591,4.9557,2704.1,2704.0,0.36987]
[1729434330891,5.32557,2704.1,2703.9,0.36989]
[1729434331295,0.36987,2704.0,2703.8,0.36989]
[1729434332403,4.9557,2704.1,2703.5,5.6891]
[1729434332698,0.3699,2703.9,2703.7,0.36991]
[1729434332997,0.36989,2703.9,2703.7,0.36991]
[1729434333496,4.9557,2704.1,2703.5,5.6891]
[1729434333690,4.9557,2704.1,2703.7,0.3699]
[1729434333691,0.36989,2703.9,2703.7,0.3699]
[1729434333896,0.36988,2704.0,2703.8,0.36989]
[1729434335485,4.9557,2704.1,2703.5,5.6899]
[1729434335890,0.36987,2704.0,2703.9,0.36988]
[1729434336109,4.9557,2704.1,2703.9,0.36988]
[1729434336308,0.36988,2704.0,2703.8,0.3699]
[1729434336800,4.9557,2704.1,2703.5,5.6899]
[1729434336994,4.9557,2704.1,2703.5,3.57853]
[1729434336995,5.88037,2704.1,2703.5,3.57853]
[1729434337202,0.36993,2703.6,2703.5,3.2086]
[1729434337496,0.36993,2703.6,2703.5,0.0008]
[1729434339008,7.27693,2703.6,2703.5,0.0008]
[1729434339300,0.37001,2703.0,2702.9,3.2078]
[1729434339500,0.37001,2703.0,2701.7,1.85094]
[1729434339501,3.2078,2703.3,2702.6,3.2078]
[1729434339693,0.37001,2703.0,2702.6,3.2078]
[1729434339993,0.37001,2703.0,2702.7,0.37005]
[1729434340189,0.37001,2703.0,2702.8,0.37004]
[1729434340390,3.2078,2703.3,2702.6,3.2078]
[1729434340590,3.2078,2703.3,2702.8,0.37004]
[1729434341099,3.2078,2703.3,2702.6,3.57786]
[1729434341100,0.37002,2703.0,2702.6,3.57786]
[1729434341291,3.2078,2703.3,2702.6,3.57786]
[1729434341492,3.2078,2703.3,2702.7,2.34]
[1729434342008,0.37003,2702.9,2702.7,2.34]
[1729434342201,0.925,2703.1,2702.6,3.2078]
[1729434342703,0.37005,2702.7,2702.6,3.2078]
[1729434343300,0.37007,2702.6,2702.3,8.3048]
[1729434343604,4.13283,2703.0,2702.3,8.3048]
[1729434343794,0.37013,2702.2,2701.9,3.57796]
[1729434344201,43.3041,2702.6,2701.9,3.2078]
[1729434344397,0.37008,2702.5,2701.9,3.57795]
[1729434344599,0.37012,2702.2,2701.9,3.57795]
[1729434344903,0.37012,2702.2,2702.0,0.37014]
[1729434345206,0.37011,2702.3,2701.9,3.2078]
[1729434345497,43.3041,2702.6,2702.0,0.37014]
[1729434345696,0.37012,2702.2,2702.0,0.37014]
[1729434345902,43.3041,2702.6,2701.9,3.2078]
[1729434345903,0.37011,2702.3,2701.9,3.2078]
[1729434346200,43.3041,2702.6,2701.9,3.57795]
[1729434346201,0.37012,2702.2,2701.9,3.57795]
[1729434346400,0.37011,2702.3,2702.0,0.37014]
[1729434346596,43.3041,2702.6,2701.9,3.2078]
[1729434346797,0.37013,2702.2,2701.9,3.2078]
[1729434347101,2.5041,2702.6,2702.0,0.37014]